bitfinex/quotes_SOLUSD_20250617
["timestamp","ask_amount","ask_price","bid_price","bid_amount"]
[1750158381109,31.39457005,150.97,150.93,5.39457005]
[1750158382114,38.01880409,150.97,150.93,5.39457005]
[1750158382319,38.01880409,150.97,150.91,6.62628717]
[1750158382515,38.01880409,150.97,150.93,5.39457005]
[1750158386799,36.08611095,150.97,150.93,3.46187691]
[1750158387218,32.62423404,150.97,150.93,3.46187691]
[1750158387423,32.62423404,150.97,150.94,3.46187691]
[1750158388425,36.08611095,150.97,150.93,3.46187691]
[1750158391619,32.62423404,150.97,150.93,3.46187691]
[1750158393421,41.02406598,150.97,150.92,9.52187691]
[1750158393618,36.08611095,150.97,150.92,9.52187691]
[1750158394013,41.03300522,150.97,150.92,9.52187691]
[1750158394227,36.08611095,150.97,150.92,9.52187691]
[1750158394537,36.08611095,150.97,150.92,6.06]
[1750158394538,3.46187691,150.95,150.92,6.06]
[1750158395016,36.08611095,150.97,150.93,3.46187691]
[1750158395218,32.62423404,150.97,150.93,3.46187691]
[1750158395415,32.62423404,150.97,150.94,3.46187691]
[1750158395936,4.94696393,150.98,150.96,3.46187691]
[1750158396114,26.0,150.99,150.96,3.46187691]
[1750158396322,11.57055787,151.01,150.98,3.46187691]
[1750158396519,4.94814858,151.0,150.98,3.46187691]
[1750158396712,4.94814858,151.02,150.99,3.46187691]
[1750158396911,4.94814858,151.03,150.97,6.62347482]
[1750158397133,4.94814858,151.03,150.99,5.40400401]
[1750158397322,11.56949736,151.03,150.99,5.40400401]
[1750158398223,6.62134878,151.03,150.99,5.40400401]
[1750158398609,30.94814858,151.04,151.0,5.40400401]
[1750158398817,37.5690369,151.04,151.0,5.40400401]
[1750158399015,37.5690369,151.04,150.98,6.6233918]
[1750158399016,32.62088832,151.04,151.01,5.40400401]
[1750158399323,38.02489233,151.04,151.0,5.40400401]
[1750158399523,5.40400401,151.03,150.99,11.46400401]
[1750158400123,5.40400401,151.03,150.99,6.06]
[1750158400320,12.02554699,151.03,150.99,11.46400401]
[1750158400839,16.97369557,151.03,150.99,11.46400401]
[1750158402427,11.56969156,151.03,150.99,11.46400401]
[1750158402629,12.02554699,151.03,150.99,11.46400401]
[1750158403638,16.97369557,151.03,150.99,11.46400401]
[1750158403829,6.62154298,151.03,151.0,5.40400401]
[1750158404037,38.02488529,151.04,151.0,5.40400401]
[1750158404523,38.02488529,151.04,150.99,6.06]
[1750158404717,5.40400401,151.03,150.99,6.06]
[1750158404920,5.40400401,151.03,150.99,11.46400401]
[1750158405719,12.02546956,151.03,150.99,11.46400401]
[1750158408061,6.62146555,151.03,150.99,11.46400401]
[1750158408352,5.40400401,151.02,150.99,6.06]
[1750158408554,12.02546956,151.03,150.99,5.40400401]
[1750158409041,4.94545074,151.05,150.97,12.68364047]
[1750158409042,11.56585433,151.05,150.98,6.62339382]
[1750158409242,6.62040359,151.05,150.98,6.62339382]
[1750158409449,6.62040359,151.05,151.02,5.40400401]
[1750158411024,6.62040359,151.05,151.0,6.62246411]
[1750158411231,6.62040359,151.05,151.02,5.40400401]
[1750158412447,12.0244076,151.05,150.98,6.62339382]
[1750158412747,5.40400401,151.03,150.99,5.40400401]
[1750158414049,12.02547788,151.03,150.99,5.40400401]
[1750158415137,6.62147387,151.03,151.0,5.40400401]
[1750158416051,6.62147387,151.03,150.98,6.62339382]
[1750158416237,6.62147387,151.03,151.0,5.40400401]
[1750158420588,12.02547788,151.03,150.99,5.40400401]
[1750158422961,12.02547788,151.03,150.97,12.68369634]
[1750158423145,12.02547788,151.03,150.99,5.40400401]
[1750158424857,5.40400401,151.02,150.98,5.40400401]
[1750158425247,6.622078,151.01,150.98,5.40400401]
[1750158426640,6.622078,151.01,150.97,6.06]
[1750158426864,6.622078,151.01,150.98,5.40400401]
[1750158428246,6.622078,151.01,150.97,11.46400401]
[1750158429740,12.02608201,151.01,150.97,11.46400401]
[1750158431343,12.02608201,151.01,150.97,6.06]
[1750158431659,5.40400401,151.0,150.97,6.06]
[1750158431867,6.62295516,150.99,150.97,6.06]
[1750158432267,12.02695917,150.99,150.97,6.06]
[1750158432467,5.40400401,150.98,150.97,6.06]
[1750158432868,31.40400401,150.98,150.97,6.06]
[1750158433373,31.40400401,150.98,150.92,12.03000607]
[1750158433554,5.40400401,150.96,150.92,18.03000607]
[1750158439396,6.62396008,150.97,150.92,18.03000607]
[1750158439589,5.40400401,150.96,150.92,18.03000607]
[1750158440688,5.40400401,150.95,150.92,6.0]
[1750158440985,12.02846014,150.96,150.92,11.40400401]
[1750158441188,5.40400401,150.95,150.92,6.0]
[1750158441490,6.62445613,150.96,150.92,6.0]
[1750158441491,5.40400401,150.94,150.92,6.0]
[1750158442372,26.0,150.95,150.92,6.0]
[1750158442582,26.0,150.95,150.92,11.40400401]
[1750158442774,32.62473968,150.95,150.92,11.40400401]
[1750158442975,38.02874369,150.95,150.92,6.0]
[1750158444064,32.62473968,150.95,150.92,6.0]
[1750158444385,32.62473968,150.95,150.92,11.40400401]
[1750158446986,32.62473968,150.95,150.92,6.0]
[1750158447203,38.02874369,150.95,150.92,6.0]
[1750158447499,5.40400401,150.94,150.92,6.0]
[1750158448200,12.02932486,150.94,150.92,6.0]
[1750158450910,5.40400401,150.93,150.92,6.0]
[1750158451067,5.40400401,150.93,150.87,11.30400401]
[1750158451367,5.40400401,150.91,150.87,5.40400401]
[1750158452093,5.40400401,150.92,150.86,12.52849376]
[1750158452279,12.03015742,150.92,150.88,5.40400401]
[1750158455095,6.62615341,150.92,150.88,12.03178317]
[1750158455294,6.62615341,150.92,150.88,5.40400401]
[1750158455798,26.0,150.94,150.91,5.40400401]
[1750158456000,26.0,150.94,150.9,5.40400401]
[1750158456208,31.40400401,150.94,150.9,5.40400401]
[1750158456388,31.40400401,150.94,150.89,5.40400401]
[1750158457301,31.40400401,150.94,150.9,5.40400401]
[1750158457673,26.0,150.94,150.9,5.40400401]
[1750158457877,31.40400401,150.94,150.9,5.40400401]
[1750158458489,26.0,150.94,150.91,5.40400401]
[1750158459702,31.40400401,150.94,150.9,5.40400401]
[1750158460589,31.40400401,150.94,150.88,5.40400401]
[1750158460590,5.40400401,150.92,150.88,5.40400401]
[1750158460982,5.40400401,150.91,150.87,5.40400401]
[1750158461178,49.18803015,150.94,150.86,11.30400401]
[1750158461394,5.40400401,150.89,150.86,5.9]
[1750158461698,26.0,150.91,150.86,5.9]
[1750158461906,5.40400401,150.9,150.86,11.30400401]
[1750158462691,5.40400401,150.9,150.86,5.9]
[1750158462903,5.40400401,150.89,150.86,5.9]
[1750158463087,26.0,150.91,150.86,11.30400401]
[1750158463283,5.40400401,150.9,150.86,11.30400401]
[1750158463483,12.03128673,150.9,150.86,11.30400401]
[1750158464286,27.2,150.95,150.86,11.30400401]
[1750158464287,12.02915307,150.94,150.89,5.40400401]
[1750158464490,6.62514906,150.94,150.89,5.40400401]
[1750158464807,26.0,150.92,150.88,5.40400401]
[1750158464995,31.40400401,150.92,150.86,12.52858215]
[1750158465195,31.40400401,150.92,150.88,5.40400401]
[1750158465605,5.40400401,150.91,150.86,5.9]
[1750158465909,5.40400401,150.9,150.86,11.30400401]
[1750158467609,6.62689635,150.91,150.86,11.30400401]
[1750158467793,5.40400401,150.9,150.86,11.30400401]
[1750158469012,5.40400401,150.89,150.86,5.9]
[1750158469383,6.62689635,150.91,150.86,5.9]
[1750158469617,12.03116379,150.9,150.86,5.9]
[1750158470109,5.40400401,150.89,150.86,5.9]
[1750158470919,6.62715978,150.9,150.86,5.9]
[1750158471214,5.40400401,150.89,150.86,5.9]
[1750158471602,12.03135992,150.89,150.86,5.9]
[1750158475616,6.62735591,150.89,150.86,5.9]
[1750158475916,12.03135992,150.89,150.86,5.9]
[1750158478205,5.40400401,150.9,150.86,11.30400401]
[1750158478405,5.40400401,150.9,150.86,5.9]
[1750158479709,12.03047011,150.91,150.87,5.40400401]
[1750158480516,12.03047011,150.91,150.86,11.30400401]
[1750158480698,5.40400401,150.9,150.86,11.30400401]
[1750158482218,12.0309532,150.9,150.86,11.30400401]
[1750158484309,6.62694919,150.9,150.86,17.93262261]
[1750158484518,12.03066331,150.91,150.87,5.40400401]
[1750158484831,10.09112265,150.91,150.87,3.46446335]
[1750158487232,6.6266593,150.91,150.87,3.46446335]
[1750158487403,35.21388525,150.93,150.89,3.46446335]
[1750158487404,6.62564176,150.93,150.89,3.46446335]
[1750158487595,6.62564176,150.93,150.87,6.62819644]
[1750158487596,6.62564176,150.93,150.9,3.46446335]
[1750158487923,29.46446335,150.94,150.9,3.46446335]
[1750158487924,6.62525211,150.94,150.9,3.46446335]
[1750158488222,26.0,150.93,150.9,3.46446335]
[1750158488414,10.08971546,150.94,150.9,3.46446335]
[1750158488595,36.08971546,150.94,150.89,6.62706073]
[1750158488798,38.03639294,150.94,150.9,5.41114083]
[1750158490002,32.62525211,150.94,150.91,5.41114083]
[1750158490610,32.62525211,150.94,150.89,6.62706073]
[1750158490826,32.62525211,150.94,150.9,5.41114083]
[1750158491027,38.03639294,150.94,150.9,5.41114083]
[1750158491512,38.03639294,150.94,150.87,6.62822297]
[1750158491711,38.03639294,150.94,150.9,5.41114083]
[1750158493134,32.62525211,150.94,150.9,5.41114083]
[1750158493327,26.0,150.94,150.91,5.41114083]
[1750158494211,26.0,150.94,150.9,6.62687549]
[1750158494413,26.0,150.94,150.91,5.41114083]
[1750158495837,32.62521674,150.94,150.91,5.41114083]
[1750158496819,26.0,150.94,150.87,6.91254611]
[1750158497020,26.0,150.94,150.91,5.41114083]
[1750158499629,26.0,150.94,150.89,6.62702585]
[1750158499937,26.0,150.94,150.91,5.41114083]
[1750158501127,38.03634189,150.94,150.9,5.41114083]
[1750158501323,5.41114083,150.93,150.87,6.62822297]
[1750158501642,5.41114083,150.92,150.88,11.29114083]
[1750158501840,5.41114083,150.92,150.87,6.62822297]
[1750158502021,5.41114083,150.92,150.88,5.41114083]
[1750158502634,12.03721174,150.92,150.88,5.41114083]
[1750158503167,12.03721174,150.92,150.87,12.50822297]
[1750158503443,12.03721174,150.92,150.88,5.41114083]
[1750158504632,5.41114083,150.9,150.87,5.88]
[1750158505336,5.41114083,150.89,150.87,5.88]
[1750158506542,30.93172276,150.91,150.87,5.88]
[1750158506842,12.03864653,150.89,150.87,5.88]
[1750158509445,5.41114083,150.88,150.87,5.88]
[1750158509850,31.41114083,150.88,150.87,5.88]
[1750158510353,38.03892449,150.88,150.87,5.88]
[1750158510725,38.03892449,150.88,150.83,33.96627628]
[1750158510952,5.41114083,150.87,150.83,33.96627628]
[1750158511722,12.03951107,150.87,150.83,33.96627628]
[1750158513048,12.03951107,150.87,150.83,28.55513545]
[1750158513726,12.03951107,150.87,150.83,33.96627628]
[1750158514754,12.04019514,150.86,150.83,28.55513545]
[1750158514953,12.04019514,150.86,150.82,11.29114083]
[1750158514954,12.04019514,150.86,150.8,6.63116145]
[1750158515144,5.41114083,150.85,150.81,5.41114083]
[1750158515548,5.41114083,150.84,150.8,11.29114083]
[1750158516338,12.04072304,150.84,150.8,11.29114083]
[1750158516855,5.41114083,150.84,150.8,17.92239269]
[1750158517350,12.0404035,150.85,150.81,5.41114083]
[1750158518744,12.0404035,150.85,150.8,12.51125186]
[1750158518934,12.0404035,150.85,150.81,5.41114083]
[1750158519135,5.41114083,150.83,150.8,5.88]
[1750158519539,32.62926267,150.85,150.8,5.88]
[1750158519540,18.64964886,150.84,150.8,5.88]
[1750158519736,5.41114083,150.81,150.8,5.88]
[1750158520539,6.63086002,150.81,150.8,5.88]
[1750158522261,12.04200085,150.81,150.75,5.88]
[1750158522435,5.41114083,150.8,150.76,5.41114083]
[1750158522932,12.04246987,150.8,150.76,5.41114083]
[1750158523333,12.04246987,150.8,150.75,12.51343676]
[1750158523532,12.04246987,150.8,150.76,5.41114083]
[1750158523758,12.04211068,150.81,150.77,5.41114083]
[1750158525942,5.41114083,150.83,150.79,5.41114083]
[1750158526444,31.41114083,150.83,150.79,5.41114083]
[1750158527649,38.04134558,150.83,150.79,5.41114083]
[1750158528558,5.41114083,150.82,150.78,5.41114083]
[1750158529843,5.41114083,150.81,150.77,12.04358434]
[1750158530166,5.41114083,150.81,150.77,5.41114083]
[1750158530669,5.41114083,150.8,150.75,5.88]
[1750158530845,5.41114083,150.79,150.75,11.29114083]
[1750158531048,5.41114083,150.79,150.75,5.88]
[1750158531448,5.41114083,150.79,150.75,11.29114083]
[1750158532356,6.6317395,150.79,150.75,11.29114083]
[1750158532554,12.04288033,150.79,150.75,5.88]
[1750158532758,12.04288033,150.79,150.75,11.29114083]
[1750158535248,6.6317395,150.79,150.75,5.88]
[1750158535445,5.41114083,150.78,150.75,5.88]
[1750158536147,5.41114083,150.77,150.75,5.88]
[1750158536464,5.41114083,150.76,150.75,5.88]
[1750158537374,26.0,150.77,150.75,5.88]
[1750158537375,31.41114083,150.77,150.75,5.88]
[1750158537872,26.0,150.77,150.75,5.88]
[1750158538071,31.41114083,150.77,150.75,5.88]
[1750158538258,26.0,150.77,150.75,5.88]
[1750158538571,31.41114083,150.77,150.75,5.88]
[1750158539580,38.04376322,150.77,150.75,5.88]
[1750158540866,5.41114083,150.76,150.75,5.88]
[1750158541449,38.04376322,150.77,150.75,5.88]
[1750158542068,5.41114083,150.76,150.75,5.88]
[1750158542775,1.5542,150.8,150.75,11.29114083]
[1750158543074,6.0803,150.81,150.75,11.29114083]
[1750158543075,18.64964886,150.83,150.78,5.41114083]
[1750158543251,5.41114083,150.83,150.79,5.41114083]
[1750158543455,26.0,150.8,150.79,5.41114083]
[1750158543654,5.41114083,150.83,150.78,6.63202036]
[1750158543854,5.41114083,150.83,150.79,5.41114083]
[1750158544055,26.0,150.82,150.8,5.41114083]
[1750158544576,13.62632423,150.84,150.8,5.41114083]
[1750158544767,12.0412271,150.83,150.79,5.41114083]
[1750158544972,38.0412271,150.83,150.79,5.41114083]
[1750158545277,5.41114083,150.82,150.78,5.41114083]
[1750158545854,5.41114083,150.82,150.78,12.04331978]
[1750158546761,5.41114083,150.82,150.77,6.63236351]
[1750158546762,12.04158104,150.82,150.77,6.63236351]
[1750158546961,12.04158104,150.82,150.78,5.41114083]
[1750158547475,6.63044021,150.82,150.79,5.41114083]
[1750158548215,5.41114083,150.8,150.75,5.88]
[1750158548474,6.63044021,150.82,150.79,5.41114083]
[1750158548655,12.04158104,150.82,150.78,5.41114083]
[1750158549854,6.63044021,150.82,150.78,5.41114083]
[1750158550054,12.04158104,150.82,150.78,5.41114083]
[1750158550969,5.41114083,150.81,150.77,5.41114083]
[1750158551873,12.04158104,150.82,150.78,5.41114083]
[1750158552087,12.04158104,150.82,150.76,6.63288043]
[1750158552258,12.04158104,150.82,150.78,5.41114083]
[1750158553773,38.04126223,150.83,150.79,5.41114083]
[1750158554677,32.6301214,150.83,150.79,5.41114083]
[1750158555178,38.04126223,150.83,150.79,5.41114083]
[1750158555569,5.41114083,150.82,150.78,5.41114083]
[1750158556161,32.6301214,150.83,150.78,5.41114083]
[1750158556362,6.63086002,150.81,150.78,5.41114083]
[1750158558289,12.04175589,150.82,150.77,6.63255013]
[1750158558483,6.63061506,150.82,150.76,6.63290418]
[1750158558667,6.63061506,150.82,150.77,5.41114083]
[1750158558668,5.41114083,150.81,150.77,5.41114083]
[1750158558863,12.04175589,150.82,150.78,5.41114083]
[1750158559262,6.63061506,150.82,150.79,5.41114083]
[1750158561459,6.63061506,150.82,150.77,6.63248894]
[1750158561677,12.04175589,150.82,150.78,5.41114083]
[1750158562187,6.63061506,150.82,150.79,5.41114083]
[1750158562574,38.04130954,150.83,150.79,5.41114083]
[1750158564381,38.04130954,150.83,150.76,12.5129209]
[1750158564382,32.63016871,150.83,150.76,12.5129209]
[1750158564583,5.41114083,150.82,150.78,5.41114083]
[1750158564766,26.0,150.83,150.79,5.41114083]
[1750158564973,26.0,150.83,150.8,5.41114083]
[1750158565392,32.63000154,150.83,150.8,5.41114083]
[1750158565792,38.04114237,150.83,150.79,5.41114083]
[1750158566590,12.04159406,150.82,150.78,5.41114083]
[1750158567373,31.41114083,150.79,150.72,5.86]
[1750158567578,31.41114083,150.78,150.73,5.41114083]
[1750158568289,31.41114083,150.78,150.72,5.86]
[1750158568488,6.63261922,150.77,150.73,5.41114083]
[1750158570287,6.63261922,150.77,150.74,5.41114083]
[1750158571781,26.0,150.8,150.76,5.41114083]
[1750158571987,38.04262623,150.8,150.76,5.41114083]
[1750158574488,38.04262623,150.8,150.74,6.63386144]
[1750158574795,38.04262623,150.8,150.76,5.41114083]
[1750158576104,37.7801229,150.8,150.76,5.41114083]
[1750158576473,32.36898207,150.8,150.76,5.41114083]
[1750158576679,32.36898207,150.8,150.77,5.41114083]
[1750158576680,25.73749667,150.8,150.77,5.41114083]
[1750158576876,32.36886094,150.8,150.78,5.41114083]
[1750158577082,32.36886094,150.8,150.75,6.63330429]
[1750158577083,32.36886094,150.8,150.77,5.41114083]
[1750158577277,5.41114083,150.79,150.75,5.41114083]
[1750158577494,5.41114083,150.79,150.74,5.41114083]
[1750158577685,5.41114083,150.79,150.75,5.41114083]
[1750158578088,32.36886094,150.8,150.75,5.41114083]
[1750158578282,5.41114083,150.79,150.75,5.41114083]
[1750158578885,12.04331979,150.79,150.75,5.41114083]
[1750158579277,6.63217896,150.79,150.76,5.41114083]
[1750158579787,6.63217896,150.79,150.74,6.63380774]
[1750158579996,6.63217896,150.79,150.76,5.41114083]
[1750158580503,6.63217896,150.79,150.73,6.63437935]
[1750158580676,6.63217896,150.79,150.76,5.41114083]
[1750158580884,6.63217896,150.79,150.73,6.63437935]
[1750158581083,6.63217896,150.79,150.76,5.41114083]
[1750158583112,32.3689515,150.8,150.77,5.41114083]
[1750158583785,32.3689515,150.8,150.72,27.85814053]
[1750158584092,32.3689515,150.8,150.75,5.41114083]
[1750158584093,5.41114083,150.79,150.75,5.41114083]
[1750158585009,37.29290633,150.8,150.76,5.41114083]
[1750158585303,32.3689515,150.8,150.76,5.41114083]
[1750158589511,32.3689515,150.8,150.77,5.41114083]
[1750158592114,32.3689515,150.8,150.73,6.63437935]
[1750158592287,32.3689515,150.8,150.77,5.41114083]
[1750158592612,11.5560729,150.81,150.78,5.41114083]
[1750158592789,26.0,150.79,150.78,5.41114083]
[1750158593185,26.0,150.81,150.78,5.41114083]
[1750158593810,26.0,150.8,150.79,5.41114083]
[1750158595228,11.55314332,150.83,150.79,5.41114083]
[1750158595396,26.0,150.8,150.78,6.6320337]
[1750158595594,26.0,150.8,150.79,5.41114083]
[1750158596799,11.55314332,150.83,150.79,5.41114083]
[1750158597115,26.0,150.8,150.79,5.41114083]
[1750158597901,4.92299289,150.83,150.79,5.41114083]
[1750158598099,21.68118958,150.84,150.82,5.41114083]
[1750158598100,15.0515484,150.84,150.82,5.41114083]
[1750158598792,15.0515484,150.84,150.83,5.41114083]
[1750158600188,15.0515484,150.84,150.81,6.63055176]
[1750158600387,15.0515484,150.84,150.76,12.2223]
[1750158600601,27.09224896,150.84,150.8,5.41114083]
[1750158601534,5.41114083,150.83,150.79,5.41114083]
[1750158601694,5.41114083,150.83,150.78,6.63216191]
[1750158601894,5.41114083,150.83,150.79,5.41114083]
[1750158602133,21.68110813,150.84,150.8,5.41114083]
[1750158602134,27.09224896,150.84,150.8,5.41114083]
[1750158602628,21.68110813,150.84,150.81,5.41114083]
[1750158603821,15.0515484,150.84,150.83,5.41114083]
[1750158604008,15.0515484,150.84,150.82,5.41114083]
[1750158604206,15.0515484,150.84,150.77,23.21416727]
[1750158604530,15.0515484,150.84,150.8,5.41114083]
[1750158604725,20.46268923,150.84,150.8,5.41114083]
[1750158605542,27.09223046,150.84,150.8,5.41114083]
[1750158607036,27.09223046,150.84,150.81,5.41114083]
[1750158607396,27.09223046,150.84,150.77,16.58154805]
[1750158607397,15.0515484,150.84,150.83,5.41114083]
[1750158607833,8.23397181,150.92,150.83,5.41114083]
[1750158608013,8.23397181,150.92,150.88,5.41114083]
[1750158608328,26.0,150.91,150.88,5.41114083]
[1750158608537,5.41114083,150.89,150.85,5.41114083]
[1750158609128,5.41114083,150.88,150.84,5.41114083]
[1750158609332,6.62822297,150.87,150.82,5.88]
[1750158609531,5.41114083,150.86,150.82,11.29114083]
[1750158609705,38.0393638,150.87,150.83,5.41114083]
[1750158609909,38.0393638,150.87,150.84,5.41114083]
[1750158609910,32.62822297,150.87,150.84,5.41114083]
[1750158611806,32.62822297,150.87,150.82,5.88]
[1750158612332,38.0393638,150.87,150.83,5.41114083]
[1750158612923,32.62822297,150.87,150.84,5.41114083]
[1750158613208,32.62822297,150.87,150.85,5.41114083]
[1750158614813,32.62822297,150.87,150.84,5.41114083]
[1750158616122,32.62822297,150.87,150.82,12.51039261]
[1750158616123,26.0,150.87,150.85,5.41114083]
[1750158617334,26.0,150.87,150.82,12.51039261]
[1750158617540,26.0,150.87,150.85,5.41114083]
[1750158619333,62.70121257,150.91,150.86,5.41114083]
[1750158619334,18.64964886,150.9,150.86,5.41114083]
[1750158619509,51.26078969,150.9,150.86,5.41114083]
[1750158619711,58.61114083,150.9,150.86,5.41114083]
[1750158620031,53.2,150.9,150.87,5.41114083]
[1750158620328,59.82690523,150.9,150.87,5.41114083]
[1750158620537,26.0,150.9,150.88,5.41114083]
[1750158620745,32.62695485,150.9,150.88,5.41114083]
[1750158620908,6.62695485,150.9,150.88,5.41114083]
[1750158621113,32.62664814,150.91,150.88,5.41114083]
[1750158621735,38.03778897,150.91,150.87,5.41114083]
[1750158622308,38.03778897,150.91,150.83,6.62998077]
[1750158622529,38.03778897,150.91,150.87,5.41114083]
[1750158622923,5.41114083,150.9,150.86,5.41114083]
[1750158623821,38.03778897,150.91,150.87,5.41114083]
[1750158624926,32.62664814,150.91,150.88,5.41114083]
[1750158625316,31.41114083,150.89,150.8,23.69106874]
[1750158625630,5.41114083,150.88,150.83,11.27114083]
[1750158626513,6.62822297,150.87,150.83,11.27114083]
[1750158627749,12.0393638,150.87,150.83,11.27114083]
[1750158628447,6.62822297,150.87,150.83,11.27114083]
[1750158628646,6.62822297,150.87,150.84,5.41114083]
[1750158628951,6.62822297,150.87,150.85,5.41114083]
[1750158629150,6.62822297,150.87,150.83,5.86]
[1750158629151,5.41114083,150.86,150.83,5.86]
[1750158629327,12.0393638,150.87,150.83,11.27114083]
[1750158629526,6.62822297,150.87,150.84,5.41114083]
[1750158630450,6.62734442,150.89,150.83,12.48996772]
[1750158630666,6.62734442,150.89,150.86,5.41114083]
[1750158630947,6.62734442,150.89,150.85,5.41114083]
[1750158632162,12.03848525,150.89,150.85,5.41114083]
[1750158633750,6.62734442,150.89,150.85,5.41114083]
[1750158634539,6.62734442,150.89,150.86,5.41114083]
[1750158634741,6.62734442,150.89,150.87,5.41114083]
[1750158635055,26.0,150.9,150.84,6.62943323]
[1750158635251,26.0,150.9,150.88,5.41114083]
[1750158635558,32.62692419,150.9,150.87,5.41114083]
[1750158636758,32.62692419,150.9,150.84,6.62954123]
[1750158636958,32.62692419,150.9,150.87,5.41114083]
[1750158637330,32.62692419,150.9,150.84,6.62954123]
[1750158637532,32.62692419,150.9,150.86,5.41114083]
[1750158637737,32.62692419,150.9,150.87,5.41114083]
[1750158638631,44.64964886,150.87,150.77,13.30137737]
[1750158638835,5.41114083,150.84,150.79,5.41114083]
[1750158639446,5.41114083,150.84,150.8,5.41114083]
[1750158639833,6.62866233,150.86,150.8,5.41114083]
[1750158640051,5.41114083,150.84,150.8,5.41114083]
[1750158641641,6.62866233,150.86,150.77,12.49249234]
[1750158641642,5.41114083,150.83,150.77,12.49249234]
[1750158641849,5.41114083,150.83,150.79,5.41114083]
[1750158642046,6.62998077,150.83,150.79,5.41114083]
[1750158643158,6.62998077,150.83,150.77,12.49249234]
[1750158643363,6.62998077,150.83,150.79,5.41114083]
[1750158644961,12.0411216,150.83,150.79,5.41114083]
[1750158646869,6.62998077,150.83,150.8,5.41114083]
[1750158647039,6.62998077,150.83,150.77,12.49249234]
[1750158647241,6.62998077,150.83,150.8,5.41114083]
[1750158657567,6.62998077,150.83,150.78,6.63214103]
[1750158657853,6.62998077,150.83,150.8,5.41114083]
[1750158658048,32.62970316,150.84,150.81,5.41114083]
[1750158659278,38.04084399,150.84,150.81,5.41114083]
[1750158659670,38.04084399,150.84,150.8,5.41114083]
[1750158659874,5.41114083,150.83,150.79,5.41114083]
[1750158660263,5.41114083,150.83,150.77,12.4924938]
[1750158660459,5.41114083,150.83,150.79,5.41114083]
[1750158660869,6.63042036,150.82,150.79,5.41114083]
[1750158661459,12.04156119,150.82,150.78,5.41114083]
[1750158661784,5.41114083,150.81,150.77,11.27114083]
[1750158662159,12.04156119,150.82,150.78,5.41114083]
[1750158663081,12.04156119,150.82,150.77,5.86]
[1750158663255,21.49514807,150.83,150.77,5.86]
[1750158663256,6.63129973,150.8,150.77,11.27114083]
[1750158663652,12.04244056,150.8,150.77,5.86]
[1750158664273,5.41114083,150.79,150.77,5.86]
[1750158664681,6.63129973,150.8,150.77,5.86]
[1750158664682,6.63129973,150.8,150.78,5.41114083]
[1750158664864,6.63129973,150.8,150.77,11.27114083]
[1750158665770,12.04244056,150.8,150.77,5.86]
[1750158666374,6.63129973,150.8,150.77,11.27114083]
[1750158667055,65.22219943,150.81,150.77,11.27114083]
[1750158667562,38.04219943,150.81,150.77,11.27114083]
[1750158668333,6.63060022,150.82,150.79,5.41114083]
[1750158668461,32.63060022,150.82,150.79,5.41114083]
[1750158668865,26.0,150.82,150.79,5.41114083]
[1750158670489,32.63051524,150.82,150.79,5.41114083]
[1750158671872,26.0,150.82,150.79,5.41114083]
[1750158676203,38.04162243,150.82,150.78,12.04326977]
[1750158679207,38.04162243,150.82,150.78,5.41114083]
[1750158682311,38.04162243,150.82,150.78,6.63214793]
[1750158682489,38.04162243,150.82,150.78,12.04328876]
[1750158683599,38.04162243,150.82,150.78,5.41114083]
[1750158683787,38.04162243,150.82,150.75,5.86]
[1750158683987,38.04162243,150.82,150.78,5.41114083]
[1750158685711,38.04162243,150.82,150.77,6.63226251]
[1750158685907,38.04162243,150.82,150.77,5.41114083]
[1750158686507,5.41114083,150.81,150.76,5.41114083]
[1750158687314,5.41114083,150.8,150.75,17.90457032]
[1750158687617,28.99062726,150.81,150.76,5.41114083]
[1750158687989,16.97211982,150.81,150.76,5.41114083]
[1750158688184,16.97211982,150.81,150.76,12.04411847]
[1750158688717,6.4601,150.84,150.8,5.41114083]
[1750158688902,13.08968493,150.84,150.8,5.41114083]
[1750158689220,23.43180493,150.84,150.8,5.41114083]
[1750158690591,5.41114083,150.83,150.79,5.41114083]
[1750158690797,5.41114083,150.82,150.78,5.41114083]
[1750158691910,5.41114083,150.82,150.78,12.04324521]
[1750158692444,5.41114083,150.81,150.76,6.63305916]
[1750158692729,5.41114083,150.81,150.77,5.41114083]
[1750158692893,5.41114083,150.8,150.76,12.04419999]
[1750158693100,37.56152287,150.82,150.76,12.04419999]
[1750158693300,5.41114083,150.81,150.76,12.04419999]
[1750158694021,12.04209058,150.81,150.76,12.04419999]
[1750158695633,6.63094975,150.81,150.77,5.41114083]
[1750158695817,12.04209058,150.81,150.77,5.41114083]
[1750158695999,5.41114083,150.8,150.75,12.49339118]
[1750158696203,5.41114083,150.8,150.76,5.41114083]
[1750158696920,12.04209058,150.81,150.76,5.41114083]
[1750158697126,12.04209058,150.81,150.77,5.41114083]